[Event "Titled Tuesday Blitz June 27 Early 2023"]
[White "Galchenko, Matvey"]
[Black "MKlose11"]
[WhiteFideId "24175480"]
[WhiteElo "2874"]
[BlackElo "2609"]
[Result "1-0"]
[Round "2"]
[TimeControl "180+2"]
[Date "2023.06.27"]
[WhiteClock "0:00:05"]
[BlackClock "0:00:01"]
[Board "43"]

1. d4 {[%clk 0:03:00]}  Nf6 {[%clk 0:02:59]} 2. c4 {[%clk 0:03:01]}  c5 {[%clk 0:02:43]} 3. d5 {[%clk 0:03:01]}  b5 {[%clk 0:02:43]} 4. cxb5 {[%clk 0:03:01]}  a6 {[%clk 0:02:43]} 5. e3 {[%clk 0:03:01]}  g6 {[%clk 0:02:43]} 6. Nc3 {[%clk 0:03:01]}  Bg7 {[%clk 0:02:43]} 7. Nf3 {[%clk 0:03:02]}  O-O {[%clk 0:02:43]} 8. a4 {[%clk 0:03:02]}  d6 {[%clk 0:02:43]} 9. Bc4 {[%clk 0:03:01]}  axb5 {[%clk 0:02:42]} 10. Bxb5 {[%clk 0:03:02]}  Ba6 {[%clk 0:02:42]} 11. O-O {[%clk 0:02:53]}  Nbd7 {[%clk 0:02:38]} 12. Re1 {[%clk 0:02:52]}  Ne8 {[%clk 0:02:38]} 13. e4 {[%clk 0:02:49]}  Nc7 {[%clk 0:02:38]} 14. Bc6 {[%clk 0:02:47]}  Rb8 {[%clk 0:02:33]} 15. Qc2 {[%clk 0:02:44]}  Bb7 {[%clk 0:02:21]} 16. Bxb7 {[%clk 0:02:36]}  Rxb7 {[%clk 0:02:21]} 17. Bg5 {[%clk 0:02:37]}  h6 {[%clk 0:02:07]} 18. Bh4 {[%clk 0:02:37]}  Re8 {[%clk 0:01:55]} 19. Nd2 {[%clk 0:02:25]}  Rb4 {[%clk 0:01:44]} 20. b3 {[%clk 0:02:14]}  Qb8 {[%clk 0:01:28]} 21. Bg3 {[%clk 0:02:06]}  Qb7 {[%clk 0:01:20]} 22. Rab1 {[%clk 0:01:53]}  Qa6 {[%clk 0:01:12]} 23. Nc4 {[%clk 0:01:49]}  Nb6 {[%clk 0:01:07]} 24. Na2 {[%clk 0:01:33]}  Rxc4 {[%clk 0:00:25]} 25. bxc4 {[%clk 0:01:33]}  Nxc4 {[%clk 0:00:24]} 26. Qe2 {[%clk 0:00:57]}  Qxa4 {[%clk 0:00:23]} 27. Rb7 {[%clk 0:00:58]}  Nb5 {[%clk 0:00:20]} 28. Nc1 {[%clk 0:00:51]}  Nd4 {[%clk 0:00:19]} 29. Qd3 {[%clk 0:00:49]}  Ne5 {[%clk 0:00:13]} 30. Bxe5 {[%clk 0:00:48]}  Bxe5 {[%clk 0:00:14]} 31. Ne2 {[%clk 0:00:41]}  Qa5 {[%clk 0:00:10]} 32. Reb1 {[%clk 0:00:37]}  Nxe2+ {[%clk 0:00:07]} 33. Qxe2 {[%clk 0:00:38]}  Kg7 {[%clk 0:00:06]} 34. g3 {[%clk 0:00:35]}  Bf6 {[%clk 0:00:05]} 35. Qb5 {[%clk 0:00:27]}  Ra8 {[%clk 0:00:02]} 36. Qxa5 {[%clk 0:00:26]}  Rxa5 {[%clk 0:00:03]} 37. Rc7 {[%clk 0:00:26]}  Ra4 {[%clk 0:00:03]} 38. f3 {[%clk 0:00:25]}  h5 {[%clk 0:00:04]} 39. h4 {[%clk 0:00:23]}  Ra2 {[%clk 0:00:04]} 40. Re1 {[%clk 0:00:15]}  Rd2 {[%clk 0:00:03]} 41. f4 {[%clk 0:00:15]}  Bd4+ {[%clk 0:00:02]} 42. Kh1 {[%clk 0:00:16]}  Kf6 {[%clk 0:00:03]} 43. Rc6 {[%clk 0:00:13]}  Kg7 {[%clk 0:00:03]} 44. Rc7 {[%clk 0:00:13]}  Kf8 {[%clk 0:00:03]} 45. e5 {[%clk 0:00:13]}  dxe5 {[%clk 0:00:03]} 46. fxe5 {[%clk 0:00:14]}  Bf2 {[%clk 0:00:04]} 47. Rf1 {[%clk 0:00:13]}  Bxg3 {[%clk 0:00:05]} 48. Rc8+ {[%clk 0:00:13]}  Kg7 {[%clk 0:00:05]} 49. e6 {[%clk 0:00:13]}  f5 {[%clk 0:00:05]} 50. Re8 {[%clk 0:00:10]}  Bd6 {[%clk 0:00:04]} 51. Rb1 {[%clk 0:00:07]}  Rxd5 {[%clk 0:00:05]} 52. Rb7 {[%clk 0:00:07]}  Kf6 {[%clk 0:00:04]} 53. Rg8 {[%clk 0:00:07]}  Kxe6 {[%clk 0:00:05]} 54. Rxg6+ {[%clk 0:00:07]}  Ke5 {[%clk 0:00:05]} 55. Rg5 {[%clk 0:00:08]}  Rd4 {[%clk 0:00:05]} 56. Rxh5 {[%clk 0:00:08]}  c4 {[%clk 0:00:06]} 57. Rb5+ {[%clk 0:00:07]}  Ke4 {[%clk 0:00:05]} 58. Rbxf5 {[%clk 0:00:08]}  c3 {[%clk 0:00:05]} 59. Rf2 {[%clk 0:00:05]}  Rd2 {[%clk 0:00:05]} 60. Rf1 {[%clk 0:00:04]}  c2 {[%clk 0:00:05]} 61. Rg5 {[%clk 0:00:03]}  Rd1 {[%clk 0:00:04]} 62. Rg4+ {[%clk 0:00:03]}  Ke3 {[%clk 0:00:04]} 63. Rgg1 {[%clk 0:00:03]}  Rxf1 {[%clk 0:00:04]} 64. Rxf1 {[%clk 0:00:04]}  Kd2 {[%clk 0:00:04]} 65. Kg2 {[%clk 0:00:04]}  c1=Q {[%clk 0:00:04]} 66. Rxc1 {[%clk 0:00:05]}  Kxc1 {[%clk 0:00:05]} 67. Kf3 {[%clk 0:00:06]}  Kd2 {[%clk 0:00:05]} 68. Ke4 {[%clk 0:00:06]}  Kc3 {[%clk 0:00:02]} 69. h5 {[%clk 0:00:04]}  Bf4 {[%clk 0:00:01]} 70. Kxf4 {[%clk 0:00:04]}  Kd4 {[%clk 0:00:02]} 71. h6 {[%clk 0:00:04]}  e5+ {[%clk 0:00:03]} 72. Kf3 {[%clk 0:00:05]}  e4+ {[%clk 0:00:01]} 73. Ke2 {[%clk 0:00:05]} 1-0


[Site "https://www.chess.com"]

[Event "Titled Tuesday Blitz June 27 Early 2023"]
[White "Spata, German"]
[Black "Samadov, Read"]
[WhiteFideId "113026"]
[BlackFideId "13417444"]
[WhiteElo "2606"]
[BlackElo "2874"]
[Result "0-1"]
[Round "2"]
[TimeControl "180+2"]
[Date "2023.06.27"]
[WhiteClock "0:00:01"]
[BlackClock "0:01:25"]
[Board "44"]

1. Nf3 {[%clk 0:02:58]}  Nf6 {[%clk 0:02:59]} 2. e3 {[%clk 0:02:55]}  g6 {[%clk 0:03:00]} 3. b4 {[%clk 0:02:55]}  Bg7 {[%clk 0:03:01]} 4. Bb2 {[%clk 0:02:55]}  O-O {[%clk 0:03:02]} 5. Be2 {[%clk 0:02:55]}  d5 {[%clk 0:03:01]} 6. O-O {[%clk 0:02:54]}  a5 {[%clk 0:03:00]} 7. a3 {[%clk 0:02:51]}  c6 {[%clk 0:02:58]} 8. c4 {[%clk 0:02:50]}  axb4 {[%clk 0:02:52]} 9. axb4 {[%clk 0:02:49]}  Rxa1 {[%clk 0:02:52]} 10. Bxa1 {[%clk 0:02:50]}  Na6 {[%clk 0:02:39]} 11. b5 {[%clk 0:02:42]}  cxb5 {[%clk 0:02:37]} 12. cxb5 {[%clk 0:02:42]}  Nc5 {[%clk 0:02:36]} 13. d4 {[%clk 0:02:39]}  Nce4 {[%clk 0:02:35]} 14. Nbd2 {[%clk 0:02:38]}  Qb6 {[%clk 0:02:30]} 15. Nxe4 {[%clk 0:02:36]}  Nxe4 {[%clk 0:02:29]} 16. Nd2 {[%clk 0:02:36]}  Bf5 {[%clk 0:02:26]} 17. Nxe4 {[%clk 0:02:33]}  Bxe4 {[%clk 0:02:27]} 18. Qd2 {[%clk 0:02:33]}  Ra8 {[%clk 0:02:19]} 19. Bc3 {[%clk 0:02:29]}  Ra4 {[%clk 0:02:12]} 20. Bb4 {[%clk 0:02:20]}  Bf6 {[%clk 0:02:04]} 21. Rc1 {[%clk 0:02:09]}  Bf5 {[%clk 0:02:04]} 22. h3 {[%clk 0:02:01]}  Bd7 {[%clk 0:02:03]} 23. Bc5 {[%clk 0:01:56]}  Qd8 {[%clk 0:01:58]} 24. Qc2 {[%clk 0:01:51]}  Ra8 {[%clk 0:01:55]} 25. b6 {[%clk 0:01:47]}  Bc6 {[%clk 0:01:48]} 26. Qb3 {[%clk 0:01:43]}  e5 {[%clk 0:01:48]} 27. dxe5 {[%clk 0:01:39]}  Bxe5 {[%clk 0:01:49]} 28. Rd1 {[%clk 0:01:35]}  Qf6 {[%clk 0:01:41]} 29. Bf3 {[%clk 0:01:28]}  Ba4 {[%clk 0:01:35]} 30. Qa2 {[%clk 0:01:00]}  Ra6 {[%clk 0:01:28]} 31. Rxd5 {[%clk 0:00:52]}  Bc6 {[%clk 0:01:26]} 32. Qxa6 {[%clk 0:00:01]}  bxa6 {[%clk 0:01:25]} 0-1


[Site "https://www.chess.com"]

[Event "Titled Tuesday Blitz June 27 Early 2023"]
[White "Ibarra Jerez, Jose Carlos"]
[Black "Piesik, Piotr"]
[WhiteFideId "2226332"]
[BlackFideId "1136194"]
[WhiteElo "2872"]
[BlackElo "2605"]
[Result "1-0"]
[Round "2"]
[TimeControl "180+2"]
[Date "2023.06.27"]
[WhiteClock "0:00:25"]
[BlackClock "0:00:27"]
[Board "45"]

1. e4 {[%clk 0:02:57]}  c6 {[%clk 0:02:58]} 2. Nf3 {[%clk 0:02:56]}  d5 {[%clk 0:02:58]} 3. d3 {[%clk 0:02:57]}  g6 {[%clk 0:02:58]} 4. Qe2 {[%clk 0:02:57]}  Bg7 {[%clk 0:02:57]} 5. g3 {[%clk 0:02:57]}  dxe4 {[%clk 0:02:53]} 6. dxe4 {[%clk 0:02:57]}  Nf6 {[%clk 0:02:52]} 7. Bg2 {[%clk 0:02:56]}  O-O {[%clk 0:02:52]} 8. O-O {[%clk 0:02:56]}  Bg4 {[%clk 0:02:48]} 9. Nbd2 {[%clk 0:02:55]}  Nbd7 {[%clk 0:02:44]} 10. h3 {[%clk 0:02:51]}  Bxf3 {[%clk 0:02:45]} 11. Nxf3 {[%clk 0:02:52]}  e5 {[%clk 0:02:45]} 12. a4 {[%clk 0:02:49]}  Qc7 {[%clk 0:02:43]} 13. Nd2 {[%clk 0:02:49]}  Rfd8 {[%clk 0:02:42]} 14. Nc4 {[%clk 0:02:47]}  Nc5 {[%clk 0:02:38]} 15. Be3 {[%clk 0:02:37]}  Ncxe4 {[%clk 0:02:32]} 16. Rfd1 {[%clk 0:02:21]}  b6 {[%clk 0:02:23]} 17. Bxb6 {[%clk 0:02:09]}  Rxd1+ {[%clk 0:02:17]} 18. Rxd1 {[%clk 0:02:07]}  axb6 {[%clk 0:02:18]} 19. Bxe4 {[%clk 0:02:05]}  Nxe4 {[%clk 0:02:14]} 20. Qxe4 {[%clk 0:02:02]}  Rxa4 {[%clk 0:02:14]} 21. b3 {[%clk 0:02:00]}  Ra8 {[%clk 0:02:12]} 22. Rd6 {[%clk 0:01:56]}  Rc8 {[%clk 0:02:08]} 23. Qd3 {[%clk 0:01:45]}  e4 {[%clk 0:02:06]} 24. Qd2 {[%clk 0:01:31]}  b5 {[%clk 0:01:42]} 25. Rd7 {[%clk 0:01:29]}  Qb8 {[%clk 0:01:43]} 26. Nd6 {[%clk 0:01:23]}  Rd8 {[%clk 0:01:40]} 27. Nxf7 {[%clk 0:01:12]}  Rxd7 {[%clk 0:01:40]} 28. Qxd7 {[%clk 0:01:13]}  e3 {[%clk 0:01:36]} 29. Nd6 {[%clk 0:00:54]}  e2 {[%clk 0:01:15]} 30. Qe6+ {[%clk 0:00:53]}  Kh8 {[%clk 0:01:15]} 31. Nf7+ {[%clk 0:00:54]}  Kg8 {[%clk 0:01:15]} 32. Ng5+ {[%clk 0:00:54]}  Kh8 {[%clk 0:01:14]} 33. Qxe2 {[%clk 0:00:51]}  h6 {[%clk 0:01:10]} 34. Nf7+ {[%clk 0:00:46]}  Kh7 {[%clk 0:01:09]} 35. Qe6 {[%clk 0:00:46]}  c5 {[%clk 0:01:02]} 36. Nd6 {[%clk 0:00:42]}  Qa8 {[%clk 0:00:55]} 37. Ne8 {[%clk 0:00:29]}  Qa1+ {[%clk 0:00:43]} 38. Kg2 {[%clk 0:00:29]}  Qa8+ {[%clk 0:00:43]} 39. Kg1 {[%clk 0:00:27]}  Qa1+ {[%clk 0:00:43]} 40. Kh2 {[%clk 0:00:26]}  Qd4 {[%clk 0:00:27]} 41. Qf7 {[%clk 0:00:25]} 1-0


[Site "https://www.chess.com"]

[Event "Titled Tuesday Blitz June 27 Early 2023"]
[White "Shubin, Kirill"]
[Black "Poormosavi, Seyed Kian"]
[WhiteFideId "34119962"]
[BlackFideId "12585807"]
[WhiteElo "2871"]
[BlackElo "2604"]
[Result "1-0"]
[Round "2"]
[TimeControl "180+2"]
[Date "2023.06.27"]
[WhiteClock "0:00:48"]
[BlackClock "0:00:12"]
[Board "46"]

1. e4 {[%clk 0:03:00]}  c6 {[%clk 0:02:57]} 2. d4 {[%clk 0:03:00]}  d5 {[%clk 0:02:58]} 3. exd5 {[%clk 0:03:01]}  cxd5 {[%clk 0:02:58]} 4. Bd3 {[%clk 0:03:02]}  Nf6 {[%clk 0:02:58]} 5. c3 {[%clk 0:03:02]}  g6 {[%clk 0:02:59]} 6. Bf4 {[%clk 0:03:01]}  Bg7 {[%clk 0:02:59]} 7. Nd2 {[%clk 0:03:01]}  O-O {[%clk 0:03:00]} 8. Ngf3 {[%clk 0:03:01]}  Nc6 {[%clk 0:03:01]} 9. O-O {[%clk 0:03:01]}  Bf5 {[%clk 0:03:02]} 10. Bxf5 {[%clk 0:03:01]}  gxf5 {[%clk 0:03:02]} 11. Ne1 {[%clk 0:03:01]}  e6 {[%clk 0:03:00]} 12. Nd3 {[%clk 0:03:01]}  Kh8 {[%clk 0:03:01]} 13. Re1 {[%clk 0:03:00]}  Rg8 {[%clk 0:03:01]} 14. Re3 {[%clk 0:03:00]}  Ne4 {[%clk 0:02:57]} 15. Rh3 {[%clk 0:02:57]}  Qf6 {[%clk 0:02:48]} 16. Nf3 {[%clk 0:02:47]}  Bf8 {[%clk 0:02:29]} 17. Nfe5 {[%clk 0:02:43]}  Bd6 {[%clk 0:02:21]} 18. Qh5 {[%clk 0:02:35]}  Rg7 {[%clk 0:02:15]} 19. Bh6 {[%clk 0:02:18]}  Rag8 {[%clk 0:01:48]} 20. Bxg7+ {[%clk 0:02:12]}  Rxg7 {[%clk 0:01:49]} 21. f4 {[%clk 0:02:09]}  Qe7 {[%clk 0:01:42]} 22. Rf1 {[%clk 0:01:58]}  Bxe5 {[%clk 0:01:34]} 23. Nxe5 {[%clk 0:01:50]}  Nxe5 {[%clk 0:01:32]} 24. fxe5 {[%clk 0:01:51]}  Qc7 {[%clk 0:01:25]} 25. Qe2 {[%clk 0:01:43]}  a6 {[%clk 0:01:24]} 26. Kh1 {[%clk 0:01:42]}  b5 {[%clk 0:01:22]} 27. a3 {[%clk 0:01:41]}  Qc4 {[%clk 0:01:21]} 28. Qxc4 {[%clk 0:01:41]}  bxc4 {[%clk 0:01:22]} 29. Re3 {[%clk 0:01:39]}  Rg8 {[%clk 0:01:21]} 30. Re2 {[%clk 0:01:36]}  a5 {[%clk 0:01:17]} 31. g3 {[%clk 0:01:32]}  h5 {[%clk 0:01:14]} 32. Rf4 {[%clk 0:01:31]}  Kh7 {[%clk 0:01:14]} 33. Kg2 {[%clk 0:01:31]}  Kh6 {[%clk 0:01:14]} 34. Kf3 {[%clk 0:01:30]}  a4 {[%clk 0:01:14]} 35. Ke3 {[%clk 0:01:23]}  Kg6 {[%clk 0:01:13]} 36. Rg2 {[%clk 0:01:22]}  Kh6 {[%clk 0:01:11]} 37. Rf1 {[%clk 0:01:15]}  Rg7 {[%clk 0:01:11]} 38. Rf4 {[%clk 0:01:12]}  Rg8 {[%clk 0:01:12]} 39. Rh4 {[%clk 0:01:12]}  Rg7 {[%clk 0:01:06]} 40. Kf3 {[%clk 0:01:08]}  Rg8 {[%clk 0:01:04]} 41. h3 {[%clk 0:01:05]}  Ng5+ {[%clk 0:01:04]} 42. Ke3 {[%clk 0:01:05]}  Kg6 {[%clk 0:00:26]} 43. g4 {[%clk 0:01:02]}  hxg4 {[%clk 0:00:16]} 44. hxg4 {[%clk 0:01:01]}  fxg4 {[%clk 0:00:12]} 45. Rhxg4 {[%clk 0:01:00]}  f6 {[%clk 0:00:12]} 46. Kf4 {[%clk 0:00:53]}  Rf8 {[%clk 0:00:11]} 47. exf6 {[%clk 0:00:51]}  Rxf6+ {[%clk 0:00:12]} 48. Ke5 {[%clk 0:00:49]}  Rf5+ {[%clk 0:00:12]} 49. Kd6 {[%clk 0:00:49]}  Kf6 {[%clk 0:00:12]} 50. Rxg5 {[%clk 0:00:48]} 1-0


[Site "https://www.chess.com"]

[Event "Titled Tuesday Blitz June 27 Early 2023"]
[White "Williams, Simon K"]
[Black "Drygalov, Sergey"]
[WhiteFideId "404454"]
[BlackFideId "24171743"]
[WhiteElo "2604"]
[BlackElo "2869"]
[Result "0-1"]
[Round "2"]
[TimeControl "180+2"]
[Date "2023.06.27"]
[WhiteClock "0:00:15"]
[BlackClock "0:00:06"]
[Board "47"]

1. d4 {[%clk 0:03:00]}  Nf6 {[%clk 0:02:58]} 2. c4 {[%clk 0:02:56]}  e6 {[%clk 0:02:56]} 3. Nf3 {[%clk 0:02:55]}  d5 {[%clk 0:02:56]} 4. Nc3 {[%clk 0:02:52]}  c6 {[%clk 0:02:55]} 5. Bg5 {[%clk 0:02:51]}  h6 {[%clk 0:02:55]} 6. Bh4 {[%clk 0:02:51]}  dxc4 {[%clk 0:02:55]} 7. e4 {[%clk 0:02:51]}  g5 {[%clk 0:02:55]} 8. Bg3 {[%clk 0:02:51]}  b5 {[%clk 0:02:56]} 9. Be2 {[%clk 0:02:49]}  Bb7 {[%clk 0:02:55]} 10. e5 {[%clk 0:02:48]}  Nd5 {[%clk 0:02:55]} 11. Nd2 {[%clk 0:02:47]}  Nd7 {[%clk 0:02:28]} 12. a4 {[%clk 0:02:45]}  a6 {[%clk 0:02:27]} 13. Nde4 {[%clk 0:02:43]}  b4 {[%clk 0:02:26]} 14. Nb1 {[%clk 0:02:39]}  c3 {[%clk 0:02:20]} 15. bxc3 {[%clk 0:02:38]}  bxc3 {[%clk 0:02:20]} 16. Nbxc3 {[%clk 0:02:36]}  Nxc3 {[%clk 0:02:20]} 17. Nxc3 {[%clk 0:02:36]}  Bb4 {[%clk 0:02:21]} 18. Rc1 {[%clk 0:02:32]}  Qa5 {[%clk 0:02:20]} 19. Qd3 {[%clk 0:02:20]}  h5 {[%clk 0:02:11]} 20. h4 {[%clk 0:02:17]}  c5 {[%clk 0:02:11]} 21. O-O {[%clk 0:02:12]}  O-O-O {[%clk 0:01:51]} 22. Bf3 {[%clk 0:02:05]}  g4 {[%clk 0:01:14]} 23. Bxb7+ {[%clk 0:02:04]}  Kxb7 {[%clk 0:01:15]} 24. Ne4 {[%clk 0:02:04]}  cxd4 {[%clk 0:00:59]} 25. Rb1 {[%clk 0:02:02]}  Nb6 {[%clk 0:00:54]} 26. Nd6+ {[%clk 0:01:45]}  Bxd6 {[%clk 0:00:53]} 27. exd6 {[%clk 0:01:45]}  e5 {[%clk 0:00:22]} 28. Qe4+ {[%clk 0:01:40]}  Ka7 {[%clk 0:00:20]} 29. Qxe5 {[%clk 0:01:31]}  Qxe5 {[%clk 0:00:20]} 30. Bxe5 {[%clk 0:01:31]}  Rhe8 {[%clk 0:00:21]} 31. Bxd4 {[%clk 0:01:21]}  Rxd6 {[%clk 0:00:21]} 32. Rfd1 {[%clk 0:01:17]}  a5 {[%clk 0:00:13]} 33. Rb5 {[%clk 0:01:03]}  Ka6 {[%clk 0:00:12]} 34. Rdb1 {[%clk 0:00:59]}  Nxa4 {[%clk 0:00:10]} 35. Be3 {[%clk 0:00:51]}  Rxe3 {[%clk 0:00:10]} 36. fxe3 {[%clk 0:00:51]}  Nc3 {[%clk 0:00:10]} 37. R5b3 {[%clk 0:00:27]}  Nxb1 {[%clk 0:00:11]} 38. Rxb1 {[%clk 0:00:27]}  a4 {[%clk 0:00:12]} 39. Kf2 {[%clk 0:00:27]}  Ka5 {[%clk 0:00:12]} 40. e4 {[%clk 0:00:28]}  a3 {[%clk 0:00:11]} 41. Ke3 {[%clk 0:00:27]}  Ka4 {[%clk 0:00:12]} 42. e5 {[%clk 0:00:25]}  Rc6 {[%clk 0:00:10]} 43. Kd4 {[%clk 0:00:23]}  a2 {[%clk 0:00:10]} 44. Rf1 {[%clk 0:00:20]}  Ka3 {[%clk 0:00:09]} 45. Kd5 {[%clk 0:00:15]}  Ra6 {[%clk 0:00:06]} 0-1


[Site "https://www.chess.com"]

[Event "Titled Tuesday Blitz June 27 Early 2023"]
[White "Girya, Olga"]
[Black "Bharath Subramaniyam H"]
[WhiteFideId "4195752"]
[BlackFideId "46634827"]
[WhiteElo "2596"]
[BlackElo "2843"]
[Result "1-0"]
[Round "2"]
[TimeControl "180+2"]
[Date "2023.06.27"]
[WhiteClock "0:00:10"]
[BlackClock "0:00:05"]
[Board "53"]

1. d4 {[%clk 0:03:00]}  Nf6 {[%clk 0:02:59]} 2. Nf3 {[%clk 0:03:01]}  e6 {[%clk 0:02:58]} 3. c4 {[%clk 0:03:01]}  Bb4+ {[%clk 0:02:57]} 4. Bd2 {[%clk 0:03:01]}  Bxd2+ {[%clk 0:02:57]} 5. Qxd2 {[%clk 0:03:01]}  d5 {[%clk 0:02:58]} 6. e3 {[%clk 0:03:00]}  O-O {[%clk 0:02:57]} 7. Nc3 {[%clk 0:03:01]}  Qe7 {[%clk 0:02:58]} 8. Rc1 {[%clk 0:02:58]}  dxc4 {[%clk 0:02:58]} 9. Bxc4 {[%clk 0:02:57]}  c5 {[%clk 0:02:59]} 10. dxc5 {[%clk 0:02:53]}  Qxc5 {[%clk 0:02:58]} 11. Bd3 {[%clk 0:02:51]}  Nc6 {[%clk 0:02:49]} 12. O-O {[%clk 0:02:41]}  Qe7 {[%clk 0:02:45]} 13. Ne4 {[%clk 0:02:22]}  Rd8 {[%clk 0:02:41]} 14. Qc3 {[%clk 0:01:54]}  Nd5 {[%clk 0:02:38]} 15. Qb3 {[%clk 0:01:53]}  Bd7 {[%clk 0:02:24]} 16. Nc5 {[%clk 0:01:50]}  Be8 {[%clk 0:02:08]} 17. Qxb7 {[%clk 0:01:44]}  Qf6 {[%clk 0:01:23]} 18. Ne4 {[%clk 0:01:39]}  Qh6 {[%clk 0:01:19]} 19. Bb1 {[%clk 0:00:32]}  Rab8 {[%clk 0:01:17]} 20. Qa6 {[%clk 0:00:33]}  Rxb2 {[%clk 0:01:11]} 21. Rxc6 {[%clk 0:00:26]}  Nb4 {[%clk 0:01:08]} 22. Qa3 {[%clk 0:00:25]}  Rxb1 {[%clk 0:01:08]} 23. Rxb1 {[%clk 0:00:23]}  Nxc6 {[%clk 0:01:07]} 24. Nd6 {[%clk 0:00:16]}  Bd7 {[%clk 0:00:52]} 25. h3 {[%clk 0:00:16]}  Qf6 {[%clk 0:00:51]} 26. Rb7 {[%clk 0:00:14]}  h5 {[%clk 0:00:42]} 27. Qc5 {[%clk 0:00:14]}  Ne7 {[%clk 0:00:33]} 28. Ne4 {[%clk 0:00:10]}  Qa1+ {[%clk 0:00:32]} 29. Kh2 {[%clk 0:00:11]}  Nd5 {[%clk 0:00:27]} 30. Qd6 {[%clk 0:00:03]}  Nb6 {[%clk 0:00:12]} 31. Nc5 {[%clk 0:00:04]}  Qxa2 {[%clk 0:00:07]} 32. Nxd7 {[%clk 0:00:04]}  Nxd7 {[%clk 0:00:03]} 33. Rxd7 {[%clk 0:00:04]}  Rxd7 {[%clk 0:00:04]} 34. Qxd7 {[%clk 0:00:04]}  Qxf2 {[%clk 0:00:05]} 35. Qe8+ {[%clk 0:00:03]}  Kh7 {[%clk 0:00:05]} 36. Qxf7 {[%clk 0:00:03]}  Qxe3 {[%clk 0:00:04]} 37. Qxe6 {[%clk 0:00:04]}  Qf4+ {[%clk 0:00:03]} 38. Kh1 {[%clk 0:00:02]}  Qc1+ {[%clk 0:00:03]} 39. Ng1 {[%clk 0:00:03]}  g6 {[%clk 0:00:02]} 40. Qf7+ {[%clk 0:00:03]}  Kh6 {[%clk 0:00:03]} 41. Qxa7 {[%clk 0:00:03]}  Qf1 {[%clk 0:00:02]} 42. Qe3+ {[%clk 0:00:03]}  Kh7 {[%clk 0:00:02]} 43. Qf3 {[%clk 0:00:03]}  Qe1 {[%clk 0:00:02]} 44. Kh2 {[%clk 0:00:04]}  Qe5+ {[%clk 0:00:02]} 45. Qg3 {[%clk 0:00:04]}  Qf6 {[%clk 0:00:03]} 46. Qc7+ {[%clk 0:00:04]}  Kh6 {[%clk 0:00:03]} 47. Nf3 {[%clk 0:00:05]}  h4 {[%clk 0:00:02]} 48. Qc1+ {[%clk 0:00:05]}  g5 {[%clk 0:00:03]} 49. Qe3 {[%clk 0:00:03]}  Kh5 {[%clk 0:00:03]} 50. Qe5 {[%clk 0:00:03]}  Qd8 {[%clk 0:00:01]} 51. Qf5 {[%clk 0:00:02]}  Qc7+ {[%clk 0:00:01]} 52. Ne5 {[%clk 0:00:02]}  Qg7 {[%clk 0:00:01]} 53. Qg4+ {[%clk 0:00:02]}  Kh6 {[%clk 0:00:01]} 54. Qe6+ {[%clk 0:00:03]}  Kh5 {[%clk 0:00:02]} 55. Qe8+ {[%clk 0:00:03]}  Kh6 {[%clk 0:00:02]} 56. Nf7+ {[%clk 0:00:03]}  Kh7 {[%clk 0:00:03]} 57. Qe4+ {[%clk 0:00:03]}  Kg8 {[%clk 0:00:04]} 58. Ne5 {[%clk 0:00:03]}  Qc7 {[%clk 0:00:03]} 59. Qf5 {[%clk 0:00:04]}  Qe7 {[%clk 0:00:03]} 60. Qg6+ {[%clk 0:00:04]}  Kf8 {[%clk 0:00:04]} 61. Qf5+ {[%clk 0:00:04]}  Kg7 {[%clk 0:00:04]} 62. Ng4 {[%clk 0:00:04]}  Qd6+ {[%clk 0:00:04]} 63. Qe5+ {[%clk 0:00:05]}  Qxe5+ {[%clk 0:00:05]} 64. Nxe5 {[%clk 0:00:06]}  Kf6 {[%clk 0:00:06]} 65. Nf3 {[%clk 0:00:06]}  Kf5 {[%clk 0:00:07]} 66. Kg1 {[%clk 0:00:07]}  Kf4 {[%clk 0:00:08]} 67. Kf2 {[%clk 0:00:07]}  Kf5 {[%clk 0:00:08]} 68. Nh2 {[%clk 0:00:07]}  Kf4 {[%clk 0:00:08]} 69. Ng4 {[%clk 0:00:08]}  Ke4 {[%clk 0:00:08]} 70. Ke2 {[%clk 0:00:08]}  Kf4 {[%clk 0:00:09]} 71. Kf2 {[%clk 0:00:09]}  Ke4 {[%clk 0:00:10]} 72. Nh6 {[%clk 0:00:09]}  Kf4 {[%clk 0:00:10]} 73. Nf7 {[%clk 0:00:09]}  g4 {[%clk 0:00:09]} 74. hxg4 {[%clk 0:00:09]}  Kxg4 {[%clk 0:00:09]} 75. Ne5+ {[%clk 0:00:09]}  Kf5 {[%clk 0:00:08]} 76. Nf3 {[%clk 0:00:10]}  Kg4 {[%clk 0:00:09]} 77. Nh2+ {[%clk 0:00:10]}  Kf4 {[%clk 0:00:09]} 78. Nf1 {[%clk 0:00:09]}  Kg4 {[%clk 0:00:10]} 79. Kg1 {[%clk 0:00:09]}  Kf4 {[%clk 0:00:04]} 80. Kh2 {[%clk 0:00:10]}  Kg4 {[%clk 0:00:05]} 81. Ne3+ {[%clk 0:00:10]}  Kf4 {[%clk 0:00:05]} 82. Kh3 {[%clk 0:00:10]}  Kg5 {[%clk 0:00:05]} 83. Nf1 {[%clk 0:00:09]}  Kh5 {[%clk 0:00:05]} 84. Nh2 {[%clk 0:00:09]}  Kg5 {[%clk 0:00:05]} 85. Nf3+ {[%clk 0:00:10]} 1-0


[Site "https://www.chess.com"]

[Event "Titled Tuesday Blitz June 27 Early 2023"]
[White "Mardov, Dimitar"]
[Black "Domingo Nunez, Ruben"]
[WhiteFideId "30919495"]
[BlackFideId "22245570"]
[WhiteElo "2834"]
[BlackElo "2589"]
[Result "1-0"]
[Round "2"]
[TimeControl "180+2"]
[Date "2023.06.27"]
[WhiteClock "0:00:14"]
[BlackClock "0:00:24"]
[Board "56"]

1. d4 {[%clk 0:03:00]}  g6 {[%clk 0:02:58]} 2. c4 {[%clk 0:02:57]}  Bg7 {[%clk 0:02:58]} 3. Nc3 {[%clk 0:02:55]}  d6 {[%clk 0:02:59]} 4. g3 {[%clk 0:02:56]}  Nd7 {[%clk 0:02:59]} 5. Bg2 {[%clk 0:02:56]}  Ngf6 {[%clk 0:03:00]} 6. Nf3 {[%clk 0:02:57]}  O-O {[%clk 0:03:01]} 7. O-O {[%clk 0:02:56]}  c5 {[%clk 0:03:02]} 8. b3 {[%clk 0:02:55]}  Rb8 {[%clk 0:03:02]} 9. Bb2 {[%clk 0:02:55]}  a6 {[%clk 0:03:03]} 10. dxc5 {[%clk 0:02:53]}  Nxc5 {[%clk 0:03:03]} 11. Rc1 {[%clk 0:02:50]}  b5 {[%clk 0:03:04]} 12. Nd4 {[%clk 0:02:49]}  Bd7 {[%clk 0:03:04]} 13. cxb5 {[%clk 0:02:48]}  axb5 {[%clk 0:03:05]} 14. b4 {[%clk 0:02:47]}  Ne6 {[%clk 0:03:05]} 15. Nc6 {[%clk 0:02:41]}  Bxc6 {[%clk 0:03:06]} 16. Bxc6 {[%clk 0:02:42]}  Ng4 {[%clk 0:03:06]} 17. a3 {[%clk 0:02:31]}  Qb6 {[%clk 0:02:58]} 18. Nd5 {[%clk 0:02:27]}  Qd8 {[%clk 0:02:55]} 19. Bxg7 {[%clk 0:02:26]}  Kxg7 {[%clk 0:02:55]} 20. Nc3 {[%clk 0:02:25]}  Qb6 {[%clk 0:02:40]} 21. Bxb5 {[%clk 0:02:22]}  Rfc8 {[%clk 0:02:41]} 22. Bd7 {[%clk 0:02:15]}  Rc7 {[%clk 0:02:33]} 23. Nd5 {[%clk 0:02:03]}  Rxc1 {[%clk 0:02:33]} 24. Qxc1 {[%clk 0:02:04]}  Qa7 {[%clk 0:02:34]} 25. Bxe6 {[%clk 0:02:00]}  fxe6 {[%clk 0:02:33]} 26. Nf4 {[%clk 0:01:34]}  e5 {[%clk 0:02:34]} 27. Ne6+ {[%clk 0:01:33]}  Kf7 {[%clk 0:02:24]} 28. Qc4 {[%clk 0:01:30]}  Nh6 {[%clk 0:02:13]} 29. Nd8+ {[%clk 0:01:17]}  Kg7 {[%clk 0:02:14]} 30. Nc6 {[%clk 0:01:16]}  Rc8 {[%clk 0:02:09]} 31. Nxa7 {[%clk 0:01:11]}  Rxc4 {[%clk 0:02:10]} 32. b5 {[%clk 0:01:11]}  Rc7 {[%clk 0:01:35]} 33. b6 {[%clk 0:01:11]}  Rb7 {[%clk 0:01:36]} 34. Rb1 {[%clk 0:01:10]}  Ng8 {[%clk 0:01:33]} 35. a4 {[%clk 0:00:55]}  Nf6 {[%clk 0:01:34]} 36. a5 {[%clk 0:00:56]}  Nd7 {[%clk 0:01:35]} 37. Nc8 {[%clk 0:00:50]}  Rb8 {[%clk 0:01:36]} 38. Nxe7 {[%clk 0:00:48]}  Kf6 {[%clk 0:01:35]} 39. Nc6 {[%clk 0:00:42]}  Rc8 {[%clk 0:01:34]} 40. Rc1 {[%clk 0:00:31]}  Nb8 {[%clk 0:01:28]} 41. b7 {[%clk 0:00:15]}  Rc7 {[%clk 0:00:57]} 42. Nxb8 {[%clk 0:00:14]}  Rxb7 {[%clk 0:00:26]} 43. Nc6 {[%clk 0:00:13]}  Rc7 {[%clk 0:00:24]} 44. a6 {[%clk 0:00:13]}  d5 {[%clk 0:00:24]} 45. a7 {[%clk 0:00:13]}  Rc8 {[%clk 0:00:25]} 46. Ra1 {[%clk 0:00:13]}  Ra8 {[%clk 0:00:25]} 47. Rb1 {[%clk 0:00:14]}  Rxa7 {[%clk 0:00:24]} 48. Nxa7 {[%clk 0:00:14]} 1-0


[Site "https://www.chess.com"]